[Event "FIDE WCCC G12 2018"]
[Site "Santiago de Compostela"]
[Date "2018.11.11"]
[Round "7"]
[White "Lobo Pereira, Arami"]
[Black "Cornileau, Juliette"]
[Result "0-1"]
[ECO "D31"]
[WhiteElo "1592"]
[BlackElo "1740"]
[Annotator "NA RC"]
[PlyCount "100"]
[EventDate "2018.11.04"]
[EventType "swiss"]
[EventCountry "ESP"]
[SourceTitle "playchess.com"]
[Source "ChessBase"]
[SourceQuality "1"]
[TimeControl "40/5400+30:1800+30"]

1. d4 {[%emt 0:00:00]} d5 {[%emt 0:00:00]} 2. c4 {[%emt 0:00:08]} e6 {[%emt 0:00:00]} 3. Nc3 {[%emt 0:01:27]} Be7 {[%emt 0:00:00]} 4. Bf4 {[%emt 0:02:45]} Nf6 {[%emt 0:00:43]} 5. e3 {[%emt 0:01:22]} O-O {[%emt 0:03:23]} 6. Bd3 {[%emt 0:01:22]} c5 {[%emt 0:03:13]} 7. Nf3 {[%emt 0:04:25]} a6 {[%emt 0:02:30]} 8. b3 {[%emt 0:03:31]} Nc6 {[%emt 0:01:52]} 9. O-O {[%emt 0:00:48]} cxd4 {[%emt 0:06:42]} 10. exd4 {[%emt 0:02:11]} h6 {[%emt 0:04:05]} 11. a3 {[%emt 0:10:02]} Bd6 {[%emt 0:00:53]} 12. Bxd6 {[%emt 0:07:21]} Qxd6 {[%emt 0:00:08]} 13. c5 {[%emt 0:00:40]} Qd8 {[%emt 0:03:04]} 14. b4 {[%emt 0:04:18]} Re8 {[%emt 0:17:15]} 15. Re1 {[%emt 0:02:24]} Qc7 {[%emt 0:06:43]} 16. h3 {[%emt 0:02:07]} Bd7 {[%emt 0:02:47]} 17. b5 {[%emt 0:07:29]} axb5 {[%emt 0:15:33]} 18. Nxb5 {[%emt 0:00:11]} Qa5 {[%emt 0:01:58]} 19. Nd6 {[%emt 0:00:14]} Reb8 {[%emt 0:00:24]} 20. Qc2 {[%emt 0:01:54]} Ne8 {[%emt 0:06:37]} 21. Bh7+ {[%emt 0:00:39]} Kf8 {[%emt 0:01:05]} 22. Ne5 {[%emt 0:07:51]} Nxe5 {[%emt 0:00:18]} 23. dxe5 {[%emt 0:00:09]} Nxd6 {[%emt 0:02:05]} 24. cxd6 {[%emt 0:00:21]} Rc8 {[%emt 0:05:52]} 25. Qb1 {[%emt 0:00:49]} b5 {[%emt 0:00:22]} 26. Bd3 {[%emt 0:00:28]} Rc3 {[%emt 0:04:04]} 27. Rc1 {[%emt 0:00:42]} Rac8 {[%emt 0:03:01]} 28. Rxc3 {[%emt 0:00:40]} Qxc3 {[%emt 0:01:58]} 29. Qf1 {[%emt 0:03:33]} Qxe5 {[%emt 0:01:30]} 30. Rb1 {[%emt 0:00:21]} Qxd6 {[%emt 0:00:28]} 31. Bxb5 {[%emt 0:00:08]} Bxb5 {[%emt 0:00:40]} 32. Qxb5 {[%emt 0:00:10]} Qxa3 {[%emt 0:00:34]} 33. Qf1 {[%emt 0:01:02]} d4 {[%emt 0:03:14]} 34. Rd1 {[%emt 0:00:25]} Rd8 {[%emt 0:00:23]} 35. Qc4 {[%emt 0:00:32]} e5 {[%emt 0:01:24]} 36. Qc7 {[%emt 0:00:34]} Qd6 {[%emt 0:00:27]} 37. Qxd6+ {[%emt 0:00:26]} Rxd6 {[%emt 0:00:06]} 38. Kf1 {[%emt 0:00:03]} Ke7 {[%emt 0:00:28]} 39. Ke2 {[%emt 0:00:06]} Ke6 {[%emt 0:00:30]} 40. Kd3 {[%emt 0:00:00]} Kd5 {[%emt 0:00:00]} 41. Re1 {[%emt 0:00:44]} Rb6 {[%emt 0:01:17]} 42. Ra1 {[%emt 0:00:30]} e4+ {[%emt 0:11:31]} 43. Kd2 {[%emt 0:00:03]} Kc4 {[%emt 0:01:39]} 44. Ra4+ {[%emt 0:01:33]} Rb4 {[%emt 0:01:25]} 45. Ra2 {[%emt 0:00:07]} d3 {[%emt 0:00:48]} 46. Ke3 {[%emt 0:00:30]} Kc3 {[%emt 0:01:31]} 47. f3 {[%emt 0:00:48]} f5 {[%emt 0:00:20]} 48. g3 {[%emt 0:00:54]} Rb2 {[%emt 0:01:36]} 49. Ra1 {[%emt 0:00:45]} Re2+ {[%emt 0:01:12]} 50. Kf4 {[%emt 0:00:15]} d2 {[%emt 0:00:16]} 0-1

[Event "FIDE WCCC G12 2018"]
[Site "Santiago de Compostela"]
[Date "2018.11.11"]
[Round "7"]
[White "Cai, Jinru"]
[Black "Vicze, Kata"]
[Result "0-1"]
[ECO "A05"]
[WhiteElo "1578"]
[BlackElo "1828"]
[Annotator "NA RC"]
[PlyCount "146"]
[EventDate "2018.11.04"]
[EventType "swiss"]
[EventCountry "ESP"]
[SourceTitle "playchess.com"]
[Source "ChessBase"]
[SourceQuality "1"]
[TimeControl "40/5400+30:1800+30"]

{[%evp 13,139,10,19,18,32767,5,31,18,28,25,32767,108,104,106,32767,32767,32767,32767,32767,32767,126,126,32767,116,122,32767,127,108,157,157,158,164,145,160,32767,32767,141,112,147,33,130,84,32767,32767,32767,32767,32767,32767,32767,32767,32767,74,81,32767,6,0,44,41,53,-86,-89,-104,-85,-101,-94,-101,-100,-275,-294,-265,-263,-249,-321,-278,-371,-405,-434,32767,32767,-506,32767,32767,32767,32767,32767,32767,32767,32767,-12037,-29969,-29970,-29977,-29978,-29978,-29979,-12847,-29982,-29981,-12845,-29982,-29985,-12850,-29986,-29985,-29985,-29985,-29986,-29986,-29987,32767,32767,32767,32767,32767,32767,32767,-29991,-29991,32767,32767,32767,32767,-29994,32767,32767,32767,-29996,-29996]} 1. Nf3 {[%emt 0:00:00]} Nf6 {[%emt 0:00:00]} 2. g3 {[%emt 0:00:00]} d5 {[%emt 0:00:31]} 3. Bg2 {[%emt 0:00:00]} Bg4 {[%emt 0:00:35]} 4. d3 {[%emt 0:00:00]} c6 {[%emt 0:01:14]} 5. O-O {[%emt 0:00:16]} Nbd7 {[%emt 0:00:46]} 6. Nbd2 {[%emt 0:00:35]} e6 {[%emt 0:03:10]} 7. h3 {[%emt 0:00:29]} Bh5 {[%emt 0:00:54]} 8. e4 {[%emt 0:03:30]} Bd6 {[%emt 0:02:37] A07: Réti Opening: New York and Capablanca Systems} (8... dxe4 9. dxe4 e5 10. Qe1 Be7 11. Nh4 O-O 12. Nf5 Bc5 13. Nc4 a5 14. a4 Bg6 15. Bd2 b6 16. Bc3 Qc7 17. Nh4 {1-0 (59) Malakhov,V (2692)-Lysyj,I (2620) Budva 2009}) 9. Qe2 {[%emt 0:02:15]} Qc7 {[%emt 0:04:39]} 10. Re1 {[%emt 0:03:10]} dxe4 {[%emt 0:05:58]} 11. dxe4 {[%emt 0:01:59] LiveBook: 3 Games} Ne5 {[%emt 0:01:30]} 12. g4 {[%emt 0:10:48]} Bg6 {[%emt 0:01:29]} 13. Nxe5 {[%emt 0:00:56]} Bxe5 {[%emt 0:00:16]} 14. Nc4 $146 {[%emt 0:00:14]} h5 {[%emt 0:09:31]} 15. Nxe5 {[%emt 0:03:28]} Qxe5 {[%emt 0:00:51]} 16. g5 {[%emt 0:00:39]} Nd7 {[%emt 0:01:09]} 17. f4 {[%emt 0:05:46]} Qb5 {[%emt 0:06:06]} 18. c4 {[%emt 0:05:36]} Qa5 {[%emt 0:02:49]} 19. f5 {[%emt 0:03:41]} Bh7 {[%emt 0:02:23]} 20. fxe6 {[%emt 0:00:18]} fxe6 {[%emt 0:01:50]} 21. Qxh5+ {[%emt 0:00:12]} g6 {[%emt 0:06:40]} 22. Qe2 {[%emt 0:00:19]} O-O-O {[%emt 0:00:48]} 23. Bd2 {[%emt 0:05:37]} Qc7 {[%emt 0:02:08]} 24. Bc3 {[%emt 0:02:36]} e5 {[%emt 0:02:35]} 25. b3 {[%emt 0:04:11]} Bg8 {[%emt 0:02:28]} 26. Qg4 {[%emt 0:01:02]} (26. Red1 $16) 26... Re8 {[%emt 0:03:25]} (26... Qb6+ $14 27. Kh2 Re8) 27. Re3 {[%emt 0:07:53]} Be6 {[%emt 0:02:23]} 28. Qg3 {[%emt 0:00:04]} Rh5 {[%emt 0:01:58]} 29. Kf2 {[%emt 0:04:24]} Rf8+ {[%emt 0:03:30]} 30. Ke2 {[%emt 0:01:47]} Rf4 {[%emt 0:05:36]} 31. Rf1 {[%emt 0:02:16]} Rfh4 {[%emt 0:04:38]} 32. Rd3 {[%emt 0:18:33]} b6 {[%emt 0:09:44]} 33. Rh1 {[%emt 0:01:38]} Qd8 {[%emt 0:06:42]} 34. Bd2 {[%emt 0:00:56]} Kc7 {[%emt 0:03:03]} 35. c5 {[%emt 0:02:09]} Qf8 {[%emt 0:01:20]} 36. Rd6 $2 {[%emt 0:02:02]} (36. Be3 $14 {stays ahead.}) 36... Nxc5 {[%emt 0:00:59]} 37. Rxe6 {[%emt 0:01:04]} Nxe6 {[%emt 0:00:11]} 38. Qxe5+ {[%emt 0:00:38]} Qd6 {[%emt 0:00:26]} 39. Qxd6+ {[%emt 0:04:33]} Kxd6 {[%emt 0:00:02]} 40. Be1 $2 {[%emt 0:00:00]} (40. Ke3 $17) 40... Nf4+ {[%emt 0:00:00]} ({And not} 40... Rxg5 41. Bxh4 Rxg2+ 42. Bf2 $14) ({Not} 40... Nxg5 41. Ke3 $15) 41. Kf3 {[%emt 0:00:38]} Nxg2 {[%emt 0:04:39]} 42. Bg3+ {[%emt 0:01:25]} Ke6 {[%emt 0:01:09]} 43. Bxh4 Nxh4+ {[%emt 0:00:30]} ({And not} 43... Rxh4 44. Kxg2 Rxe4 45. Rf1 $11) 44. Kg3 {[%emt 0:01:34]} Ke5 {[%emt 0:01:10]} 45. Rc1 {[%emt 0:01:38]} c5 {[%emt 0:01:21]} 46. Rf1 {[%emt 0:01:56]} Kxe4 {[%emt 0:01:18]} 47. Rf4+ {[%emt 0:00:05]} Ke3 {[%emt 0:00:09]} 48. Rxh4 {[%emt 0:00:09]} Rxh4 {[%emt 0:00:04]} 49. Kxh4 {[%emt 0:00:04]} Kf4 {[%emt 0:00:28]} 50. a4 {[%emt 0:00:09]} Kf5 {[%emt 0:09:49]} (50... Kf3 $142 51. a5 bxa5 52. b4 c4 53. bxa5 c3 54. a6 Ke3 55. Kg3 c2 56. h4 c1=Q 57. Kg2 Qb2+ 58. Kg3 Qf2+ 59. Kh3 Kf4 60. h5 Qg3#) 51. Kg3 {[%emt 0:00:28]} Kxg5 {[%emt 0:00:05]} 52. h4+ Kh5 {[%emt 0:01:49]} 53. Kh3 {[%emt 0:00:32]} a6 {[%emt 0:00:24]} 54. Kg3 {[%emt 0:00:50]} b5 {[%emt 0:00:18]} 55. Kf4 {[%emt 0:00:25]} Kxh4 {[%emt 0:01:28]} 56. Ke5 {[%emt 0:00:05]} g5 {[%emt 0:00:18]} 57. axb5 {[%emt 0:00:23]} axb5 {[%emt 0:00:14]} 58. Kd5 {[%emt 0:00:03] [#]} c4 {[%emt 0:00:26]} 59. bxc4 {[%emt 0:00:04]} bxc4 {[%emt 0:00:01]} 60. Kxc4 {[%emt 0:00:05]} Kg3 {[%emt 0:00:26]} 61. Kd4 {[%emt 0:00:19]} Kf2 {[%emt 0:00:30]} 62. Ke4 {[%emt 0:00:05]} g4 {[%emt 0:00:07]} 63. Kf4 {[%emt 0:00:05]} g3 {[%emt 0:00:09]} 64. Ke5 {[%emt 0:00:05]} g2 {[%emt 0:00:04]} 65. Ke4 {[%emt 0:00:03]} g1=Q {[%emt 0:00:08]} 66. Ke5 {[%emt 0:00:03]} Ke3 {[%emt 0:00:07]} 67. Kd5 {[%emt 0:00:04]} Qg5+ {[%emt 0:00:11]} 68. Kc6 {[%emt 0:00:04]} Kd4 {[%emt 0:00:06]} 69. Kd6 {[%emt 0:00:04]} Qf6+ {[%emt 0:00:07]} 70. Kc7 {[%emt 0:00:04]} Kc5 {[%emt 0:00:06]} 71. Kb8 {[%emt 0:00:07]} Qe7 {[%emt 0:00:35]} 72. Ka8 {[%emt 0:00:05]} Kb6 {[%emt 0:00:06]} 73. Kb8 {[%emt 0:00:05]} Qd8# {[%emt 0:00:04]} 0-1

[Event "FIDE WCCC G12 2018"]
[Site "Santiago de Compostela"]
[Date "2018.11.11"]
[Round "7"]
[White "Baalla, Nura"]
[Black "Butenandt, Svenja"]
[Result "1/2-1/2"]
[ECO "B40"]
[WhiteElo "1565"]
[BlackElo "1775"]
[Annotator "NA RC"]
[PlyCount "150"]
[EventDate "2018.11.04"]
[EventType "swiss"]
[EventCountry "ESP"]
[SourceTitle "playchess.com"]
[Source "ChessBase"]
[SourceQuality "1"]
[TimeControl "40/5400+30:1800+30"]

1. e4 {[%emt 0:00:00]} c5 {[%emt 0:00:00]} 2. Nf3 {[%emt 0:00:00]} e6 {[%emt 0:00:00]} 3. d4 {[%emt 0:00:00]} cxd4 {[%emt 0:00:00]} 4. Nxd4 {[%emt 0:00:00]} Nf6 {[%emt 0:00:00]} 5. Bd3 {[%emt 0:00:56]} d6 {[%emt 0:00:08]} 6. c4 {[%emt 0:04:19]} Be7 {[%emt 0:00:43]} 7. Nc3 {[%emt 0:01:17]} a6 {[%emt 0:01:49]} 8. O-O {[%emt 0:00:43]} O-O {[%emt 0:00:14]} 9. Qe2 {[%emt 0:00:10]} Nbd7 {[%emt 0:01:36]} 10. f4 {[%emt 0:05:14]} Qc7 {[%emt 0:06:45]} 11. f5 {[%emt 0:06:05]} e5 {[%emt 0:05:04]} 12. Nc2 {[%emt 0:00:54]} Nc5 {[%emt 0:07:23]} 13. Ne3 {[%emt 0:01:39]} Bd7 {[%emt 0:06:46]} 14. Ned5 {[%emt 0:08:33]} Nxd5 {[%emt 0:05:06]} 15. Nxd5 {[%emt 0:00:12]} Qd8 {[%emt 0:00:11]} 16. b4 {[%emt 0:09:21]} Nxd3 {[%emt 0:00:45]} 17. Qxd3 {[%emt 0:00:02]} Kh8 {[%emt 0:06:02]} 18. Rf3 {[%emt 0:36:14]} Bc6 {[%emt 0:08:43]} 19. Nxe7 {[%emt 0:01:18]} Qxe7 {[%emt 0:00:07]} 20. Rh3 {[%emt 0:00:23]} f6 {[%emt 0:08:58]} 21. Qg3 {[%emt 0:08:11]} Bxe4 {[%emt 0:07:11]} 22. Qg6 {[%emt 0:02:12]} h6 {[%emt 0:03:12]} 23. Bxh6 {[%emt 0:01:57]} Kg8 {[%emt 0:00:13]} 24. Be3 {[%emt 0:00:46]} Qd7 {[%emt 0:01:42]} 25. Rf1 {[%emt 0:04:53]} Rac8 {[%emt 0:01:58]} 26. Qh7+ {[%emt 0:00:16]} Kf7 {[%emt 0:00:05]} 27. Bh6 {[%emt 0:00:12]} Ke8 {[%emt 0:02:51]} 28. Bxg7 {[%emt 0:01:31]} Rf7 {[%emt 0:00:53]} 29. Qg6 {[%emt 0:00:27]} Kd8 {[%emt 0:01:09]} 30. Bxf6+ {[%emt 0:02:24]} Kc7 {[%emt 0:00:04]} 31. c5 {[%emt 0:00:21]} Rcf8 {[%emt 0:01:26]} 32. cxd6+ {[%emt 0:00:57]} Qxd6 {[%emt 0:00:15]} 33. Rh7 {[%emt 0:01:35]} Bd5 {[%emt 0:09:17]} 34. Re1 {[%emt 0:01:03]} e4 {[%emt 0:04:03]} 35. Rxf7+ {[%emt 0:01:10]} Rxf7 {[%emt 0:00:11]} 36. Bc3 {[%emt 0:00:32]} Qf4 {[%emt 0:02:22]} 37. f6 {[%emt 0:00:54]} e3 {[%emt 0:01:10]} 38. Qg3 {[%emt 0:00:11]} Qxg3 {[%emt 0:00:49]} 39. hxg3 {[%emt 0:00:01]} Bxa2 {[%emt 0:00:11]} 40. Rxe3 {[%emt 0:00:00]} Kd7 {[%emt 0:00:00]} 41. g4 {[%emt 0:00:18]} Bb1 {[%emt 0:02:14]} 42. g5 {[%emt 0:00:24]} Bg6 {[%emt 0:00:09]} 43. Rh3 {[%emt 0:00:06]} Ke6 {[%emt 0:00:08]} 44. Rh6 {[%emt 0:00:05]} Kf5 {[%emt 0:02:15]} 45. g4+ {[%emt 0:00:05]} Kxg5 {[%emt 0:00:17]} 46. Rh2 {[%emt 0:02:50]} Kxg4 {[%emt 0:01:51]} 47. Rf2 {[%emt 0:04:48]} Bd3 {[%emt 0:02:40]} 48. Be5 {[%emt 0:00:25]} Bb5 {[%emt 0:03:01]} 49. Rf4+ {[%emt 0:01:02]} Kg5 {[%emt 0:00:44]} 50. Kf2 {[%emt 0:00:23]} Kg6 {[%emt 0:01:43]} 51. Ke3 {[%emt 0:00:27]} Rd7 {[%emt 0:06:46]} 52. Bd4 {[%emt 0:04:46]} Kf7 {[%emt 0:03:27]} 53. Rg4 {[%emt 0:03:20]} Bc6 {[%emt 0:03:55]} 54. Bc3 {[%emt 0:03:46]} Bb5 {[%emt 0:00:43]} 55. Kf4 {[%emt 0:01:23]} Bc6 {[%emt 0:00:48]} 56. Rg3 {[%emt 0:02:32]} Bb5 {[%emt 0:03:39]} 57. Be5 {[%emt 0:01:36]} Ba4 {[%emt 0:01:03]} 58. Rg1 {[%emt 0:02:22]} Bb5 {[%emt 0:01:19]} 59. Kg5 {[%emt 0:02:40]} Rd8 {[%emt 0:01:38]} 60. Kf5 {[%emt 0:01:32]} Bd3+ {[%emt 0:01:51]} 61. Kf4 {[%emt 0:00:13]} Rd7 {[%emt 0:01:03]} 62. Bc3 {[%emt 0:03:54]} Bb5 {[%emt 0:00:32]} 63. Ke5 {[%emt 0:00:10]} Bc6 {[%emt 0:01:35]} 64. Rg7+ {[%emt 0:01:46]} Ke8 {[%emt 0:02:22]} 65. Ke6 {[%emt 0:01:22]} Bd5+ {[%emt 0:00:33]} 66. Ke5 {[%emt 0:00:09]} Bc6 {[%emt 0:00:41]} 67. Ke6 {[%emt 0:02:58]} Bd5+ {[%emt 0:00:13]} 68. Ke5 {[%emt 0:00:03]} Bc6 {[%emt 0:00:11]} 69. Rg3 {[%emt 0:00:50]} Kf7 {[%emt 0:00:27]} 70. Kf5 {[%emt 0:00:34]} Rd5+ {[%emt 0:00:19]} 71. Be5 {[%emt 0:00:15]} Rd7 {[%emt 0:01:39]} 72. Rg7+ {[%emt 0:01:03]} Ke8 {[%emt 0:00:25]} 73. Kg6 {[%emt 0:00:49]} Be4+ {[%emt 0:00:38]} 74. Kh6 {[%emt 0:00:22]} Rxg7 {[%emt 0:00:51]} 75. fxg7 {[%emt 0:00:26]} Kf7 {[%emt 0:00:09]} 1/2-1/2

[Event "FIDE WCCC G12 2018"]
[Site "Santiago de Compostela"]
[Date "2018.11.11"]
[Round "7"]
[White "Zhai, Pinran"]
[Black "Denic, Hana"]
[Result "1/2-1/2"]
[ECO "C66"]
[WhiteElo "1558"]
[BlackElo "1636"]
[Annotator "NA RC"]
[PlyCount "89"]
[EventDate "2018.11.04"]
[EventType "swiss"]
[EventCountry "ESP"]
[SourceTitle "playchess.com"]
[Source "ChessBase"]
[SourceQuality "1"]
[TimeControl "40/5400+30:1800+30"]

1. e4 {[%emt 0:00:00]} e5 {[%emt 0:00:00]} 2. Nf3 {[%emt 0:00:00]} Nc6 {[%emt 0:00:00]} 3. Bb5 {[%emt 0:00:00]} d6 {[%emt 0:00:54]} 4. O-O {[%emt 0:01:43]} Nf6 {[%emt 0:00:42]} 5. d3 {[%emt 0:01:24]} Be7 {[%emt 0:01:27]} 6. h3 {[%emt 0:01:10]} Bd7 {[%emt 0:00:58]} 7. c3 {[%emt 0:06:53]} a6 {[%emt 0:01:59]} 8. Ba4 {[%emt 0:00:43]} O-O {[%emt 0:02:38]} 9. Be3 {[%emt 0:00:51]} h6 {[%emt 0:01:52]} 10. Nbd2 {[%emt 0:03:11]} b5 {[%emt 0:08:54]} 11. Bc2 {[%emt 0:01:05]} Nh7 {[%emt 0:05:55]} 12. d4 {[%emt 0:01:41]} exd4 {[%emt 0:02:34]} 13. Nxd4 {[%emt 0:05:13]} Nxd4 {[%emt 0:02:51]} 14. cxd4 {[%emt 0:00:12]} f5 {[%emt 0:02:44]} 15. exf5 {[%emt 0:00:37]} Bxf5 {[%emt 0:00:09]} 16. Bxf5 {[%emt 0:00:24]} Rxf5 {[%emt 0:00:23]} 17. Qg4 {[%emt 0:00:49]} Rf7 {[%emt 0:08:36]} 18. Bxh6 {[%emt 0:01:35]} Qc8 {[%emt 0:03:52]} 19. Qxc8+ {[%emt 0:01:11]} Rxc8 {[%emt 0:00:06]} 20. Be3 {[%emt 0:00:01]} Nf6 {[%emt 0:01:39]} 21. Nf3 {[%emt 0:01:30]} Nd5 {[%emt 0:00:41]} 22. Bd2 {[%emt 0:02:11]} Nf4 {[%emt 0:03:52]} 23. b3 {[%emt 0:00:52]} Nxh3+ {[%emt 0:01:09]} 24. gxh3 {[%emt 0:03:30]} Rxf3 {[%emt 0:00:22]} 25. Kg2 {[%emt 0:00:02]} Rf5 {[%emt 0:06:26]} 26. Rac1 {[%emt 0:01:22]} c5 {[%emt 0:11:32]} 27. Rfe1 {[%emt 0:02:14]} Kf7 {[%emt 0:01:48]} 28. Kg3 {[%emt 0:03:52]} Rh8 {[%emt 0:03:32]} 29. dxc5 {[%emt 0:04:00]} dxc5 {[%emt 0:03:22]} 30. Be3 {[%emt 0:00:51]} Rd8 {[%emt 0:02:43]} 31. Rc2 {[%emt 0:02:06]} Rdd5 {[%emt 0:01:23]} 32. Rec1 {[%emt 0:02:06]} Ke6 {[%emt 0:02:47]} 33. Re2 {[%emt 0:01:12]} Kd7 {[%emt 0:01:40]} 34. Rec2 {[%emt 0:00:51]} Kc6 {[%emt 0:01:55]} 35. Re2 {[%emt 0:04:36]} Bf6 {[%emt 0:08:48]} 36. Kg4 {[%emt 0:02:56]} Rfe5 {[%emt 0:00:49]} 37. Rec2 {[%emt 0:00:29]} Be7 {[%emt 0:01:52]} 38. Kf3 {[%emt 0:00:53]} Bg5 {[%emt 0:02:34]} 39. Rg1 {[%emt 0:03:15]} Rf5+ {[%emt 0:01:23]} 40. Ke2 {[%emt 0:00:00]} Rde5 {[%emt 0:00:00]} 41. Rg2 {[%emt 0:00:51]} Re6 {[%emt 0:06:18]} 42. Kd2 {[%emt 0:01:49]} Bxe3+ {[%emt 0:02:04]} 43. fxe3 {[%emt 0:00:55]} g6 {[%emt 0:02:45]} 44. Ke2 {[%emt 0:00:10]} Rfe5 {[%emt 0:02:10]} 45. Rg3 {[%emt 0:00:24]} 1/2-1/2

[Event "FIDE WCCC G12 2018"]
[Site "Santiago de Compostela"]
[Date "2018.11.11"]
[Round "7"]
[White "Kaldarova, Ayaulym"]
[Black "Wang, Ellen"]
[Result "0-1"]
[ECO "B42"]
[WhiteElo "1526"]
[BlackElo "1711"]
[Annotator "NA RC"]
[PlyCount "110"]
[EventDate "2018.11.04"]
[EventType "swiss"]
[EventCountry "ESP"]
[SourceTitle "playchess.com"]
[Source "ChessBase"]
[SourceQuality "1"]
[TimeControl "40/5400+30:1800+30"]

1. e4 {[%emt 0:00:00]} c5 {[%emt 0:00:00]} 2. Nf3 {[%emt 0:00:00]} e6 {[%emt 0:00:00]} 3. d4 {[%emt 0:00:00]} cxd4 {[%emt 0:00:00]} 4. Nxd4 {[%emt 0:00:00]} a6 {[%emt 0:00:00]} 5. Bd3 {[%emt 0:00:06]} Nf6 {[%emt 0:00:00]} 6. O-O {[%emt 0:01:08]} Qc7 {[%emt 0:00:05]} 7. Qe2 {[%emt 0:00:47]} d6 {[%emt 0:00:06]} 8. c4 {[%emt 0:00:29]} g6 {[%emt 0:00:04]} 9. Nc3 {[%emt 0:01:48]} Bg7 {[%emt 0:00:08]} 10. Kh1 {[%emt 0:02:26]} O-O {[%emt 0:00:38]} 11. f4 {[%emt 0:01:49]} Nbd7 {[%emt 0:00:55]} 12. Nb3 {[%emt 0:05:52]} b6 {[%emt 0:01:39]} 13. Bd2 {[%emt 0:01:47]} Bb7 {[%emt 0:00:43]} 14. Rae1 {[%emt 0:02:17]} Rad8 {[%emt 0:05:31]} 15. Rf3 {[%emt 0:17:48]} Nc5 {[%emt 0:04:33]} 16. Bb1 {[%emt 0:04:22]} Nfd7 {[%emt 0:05:01]} 17. Nxc5 {[%emt 0:03:09]} dxc5 {[%emt 0:00:41]} 18. Rd3 {[%emt 0:01:01]} Nb8 {[%emt 0:02:30]} 19. Be3 {[%emt 0:04:49]} Nc6 {[%emt 0:04:53]} 20. Red1 {[%emt 0:05:36]} Nd4 {[%emt 0:05:17]} 21. Qf2 {[%emt 0:00:42]} Rfe8 {[%emt 0:03:58]} 22. R3d2 {[%emt 0:06:57]} Qe7 {[%emt 0:07:31]} 23. e5 {[%emt 0:06:18]} f6 {[%emt 0:11:16]} 24. Bxd4 {[%emt 0:01:33]} cxd4 {[%emt 0:00:19]} 25. Rxd4 {[%emt 0:01:13]} fxe5 {[%emt 0:01:18]} 26. R4d2 {[%emt 0:14:10]} exf4 {[%emt 0:05:12]} 27. Qxf4 {[%emt 0:02:46]} Rxd2 {[%emt 0:02:38]} 28. Qxd2 {[%emt 0:00:19]} Rf8 {[%emt 0:03:03]} 29. Qe3 {[%emt 0:04:20]} Qf6 {[%emt 0:07:42]} 30. h3 {[%emt 0:04:02]} Qf2 {[%emt 0:08:21]} 31. Qxe6+ {[%emt 0:02:44]} Kh8 {[%emt 0:00:12]} 32. Nd5 {[%emt 0:01:23]} Bc8 {[%emt 0:08:37]} 33. Qe3 {[%emt 0:01:39]} Qxb2 {[%emt 0:02:15]} 34. Nxb6 {[%emt 0:01:00]} Bb7 {[%emt 0:04:20]} 35. Nd5 {[%emt 0:00:40]} Ba8 {[%emt 0:03:54]} 36. Re1 {[%emt 0:02:26]} a5 {[%emt 0:03:13]} 37. Qe7 {[%emt 0:00:29]} Qf2 {[%emt 0:00:58]} 38. Qe3 {[%emt 0:00:31]} Qb2 {[%emt 0:00:36]} 39. Qe7 {[%emt 0:00:24]} Qf2 {[%emt 0:00:17]} 40. Qe3 {[%emt 0:00:00]} Qf7 {[%emt 0:00:00]} 41. Qc5 {[%emt 0:03:31]} h6 {[%emt 0:08:01]} 42. Ne7 {[%emt 0:09:30]} Bxg2+ {[%emt 0:03:27]} 43. Kg1 {[%emt 0:00:18]} Ba8 {[%emt 0:04:59]} 44. Nxg6+ {[%emt 0:00:25]} Kg8 {[%emt 0:00:15]} 45. Ne7+ {[%emt 0:04:40]} Kh8 {[%emt 0:00:24]} 46. Bf5 {[%emt 0:05:26]} Re8 {[%emt 0:06:26]} 47. Re3 {[%emt 0:03:48]} Bf6 {[%emt 0:04:12]} 48. Ng6+ {[%emt 0:02:04]} Kg7 {[%emt 0:02:11]} 49. Rg3 {[%emt 0:02:30]} Bg5 {[%emt 0:01:25]} 50. h4 {[%emt 0:00:53]} Qf6 {[%emt 0:01:22]} 51. Qc7+ {[%emt 0:02:55]} Kg8 {[%emt 0:00:12]} 52. Kf2 {[%emt 0:00:38]} Qb2+ {[%emt 0:00:19]} 53. Kf1 {[%emt 0:00:28]} Qe2+ {[%emt 0:00:20]} 54. Kg1 {[%emt 0:00:11]} Qe1+ {[%emt 0:00:07]} 55. Kh2 {[%emt 0:00:14]} Qh1# {[%emt 0:00:04]} 0-1

[Event "FIDE WCCC G12 2018"]
[Site "Santiago de Compostela"]
[Date "2018.11.11"]
[Round "7"]
[White "Nasibova, Narmin"]
[Black "Bravo Mallco, Kate Azumi"]
[Result "0-1"]
[ECO "D18"]
[WhiteElo "1331"]
[BlackElo "1698"]
[Annotator "NA RC"]
[PlyCount "104"]
[EventDate "2018.11.04"]
[EventType "swiss"]
[EventCountry "ESP"]
[SourceTitle "playchess.com"]
[Source "ChessBase"]
[SourceQuality "1"]
[TimeControl "40/5400+30:1800+30"]

1. d4 {[%emt 0:00:00]} d5 {[%emt 0:00:00]} 2. c4 {[%emt 0:00:00]} c6 {[%emt 0:00:00]} 3. Nf3 {[%emt 0:00:32]} Nf6 {[%emt 0:00:05]} 4. Nc3 {[%emt 0:00:34]} dxc4 {[%emt 0:00:21]} 5. a4 {[%emt 0:02:16]} Bf5 {[%emt 0:00:08]} 6. e3 {[%emt 0:01:28]} e6 {[%emt 0:00:28]} 7. Bxc4 {[%emt 0:00:33]} Bb4 {[%emt 0:00:22]} 8. O-O {[%emt 0:02:16]} O-O {[%emt 0:01:06]} 9. Bd2 {[%emt 0:15:25]} Nbd7 {[%emt 0:05:29]} 10. Qb3 {[%emt 0:09:24]} Qb6 {[%emt 0:12:19]} 11. Na2 {[%emt 0:17:09]} Bxd2 {[%emt 0:01:23]} 12. Nxd2 {[%emt 0:01:29]} c5 {[%emt 0:01:06]} 13. dxc5 {[%emt 0:16:34]} Nxc5 {[%emt 0:03:19]} 14. Qxb6 {[%emt 0:01:55]} axb6 {[%emt 0:09:00]} 15. b3 {[%emt 0:08:47]} Rfd8 {[%emt 0:12:09]} 16. Nf3 {[%emt 0:05:29]} Rac8 {[%emt 0:05:06]} 17. Nd4 {[%emt 0:08:56]} Nxa4 {[%emt 0:04:33]} 18. Bxe6 {[%emt 0:04:39]} Bxe6 {[%emt 0:00:28]} 19. bxa4 {[%emt 0:00:46]} Bc4 {[%emt 0:03:09]} 20. Rfb1 {[%emt 0:01:04]} Kf8 {[%emt 0:02:50]} 21. h3 {[%emt 0:00:31]} Nd5 {[%emt 0:03:23]} 22. Nb4 {[%emt 0:00:32]} Nc3 {[%emt 0:01:00]} 23. Rb2 {[%emt 0:00:35]} Rc5 {[%emt 0:13:23]} 24. Rc2 {[%emt 0:00:30]} Ba6 {[%emt 0:06:04]} 25. Nxa6 {[%emt 0:00:29]} bxa6 {[%emt 0:00:23]} 26. Rb2 {[%emt 0:00:32]} Rd6 {[%emt 0:01:53]} 27. Kf1 {[%emt 0:00:26]} Ke8 {[%emt 0:03:33]} 28. Rb3 {[%emt 0:00:31]} Rf6 {[%emt 0:03:42]} 29. f3 {[%emt 0:00:33]} Kd7 {[%emt 0:01:05]} 30. Raa3 {[%emt 0:00:25]} Nd5 {[%emt 0:01:30]} 31. Rd3 {[%emt 0:00:31]} Nb4 {[%emt 0:02:12]} 32. Rdb3 {[%emt 0:00:30]} a5 {[%emt 0:03:05]} 33. Rc3 {[%emt 0:00:30]} Kc7 {[%emt 0:01:10]} 34. Rxc5+ {[%emt 0:00:35]} bxc5 {[%emt 0:00:05]} 35. Nb5+ {[%emt 0:00:09]} Kb6 {[%emt 0:00:34]} 36. Ke2 {[%emt 0:00:34]} Rg6 {[%emt 0:00:08]} 37. Kf2 {[%emt 0:00:26]} c4 {[%emt 0:00:12]} 38. Rc3 {[%emt 0:00:22]} Nd3+ {[%emt 0:00:23]} 39. Kf1 {[%emt 0:00:22]} Kc5 {[%emt 0:01:09]} 40. Na3 {[%emt 0:00:00]} Nb2 {[%emt 0:00:00]} 41. Nc2 {[%emt 0:10:11]} Rd6 {[%emt 0:05:08]} 42. Ra3 {[%emt 0:12:53]} Rd2 {[%emt 0:02:50]} 43. Nd4 {[%emt 0:03:33]} Kb4 {[%emt 0:01:07]} 44. Ra2 {[%emt 0:00:26]} c3 {[%emt 0:01:34]} 45. Nc6+ {[%emt 0:02:03]} Kb3 {[%emt 0:00:26]} 46. Ra1 {[%emt 0:01:04]} Nc4 {[%emt 0:03:06]} 47. Rb1+ {[%emt 0:03:22]} Ka2 {[%emt 0:01:35]} 48. Rc1 {[%emt 0:00:57]} Kb2 {[%emt 0:00:27]} 49. Re1 {[%emt 0:00:25]} c2 {[%emt 0:00:08]} 50. Nd4 {[%emt 0:00:46]} Nxe3+ {[%emt 0:00:31]} 51. Kg1 {[%emt 0:00:44]} Rxg2+ {[%emt 0:00:02]} 52. Kh1 {[%emt 0:00:18]} c1=Q {[%emt 0:00:04]} 0-1